Workbook

Sheet Balans 2022
A1: Jaarcijfers stg. Multiplex per 31-12-2022
C4: BALANS
A6: ACTIVA per: | B6: 31 december 2022 | E6: 31 december 2021
A9: Liquide middelen
A10: Kas | B10: 59 | E10: 52
A11: Bank | B11: 31317 | E11: 22548
A12: Spaarrekening | B12: 15273 | E12: 35273 | F12: =SUM(E9) -> 0
C13: =SUM(B10:B12) -> 46649 | F13: =SUM(E10:E12) -> 57873
A15: Vorderingen lang
A17: Voorbelasting | B17: 5004 | E17: 77
C18: =SUM(B17) -> 5004 | F18: =SUM(E17) -> 77
A21: Vorderingen kort
A23: vooruitbetaalde bedragen | B23: =169-2 -> 167 | E23: -
A24: Nog te ontvangen subsidie | B24: 17500 | E24: 5505
C25: =SUM(B22:B24) -> 17667 | F25: =SUM(E22:E24) -> 5505
A31: TOTAAL | C31: =SUM(C9:C26) -> 69320 | F31: =SUM(F9:F26) -> 63455
C32: ========= | F32: =========
C50: BALANS
A52: PASSIVA per: | B52: 31 december 2022 | E52: 31 december 2021
A55: Eigen Vermogen
A57: Vermogen | B57: 29718 | E57: 25554
A58: Voorheen toevoeging uit
A59: winst voorgaande jaar
A60: niet aftrekbare bedragen
A61: niet aftrekbare bedragen
A62: Resultaat verslagperiode | B62: ='V&W 2022'!$D$53 -> 11772 | E62: ='V&W 2022'!$H$53 -> 4164
C63: =SUM(B57:B62) -> 41490 | F63: =SUM(E57:E62) -> 29718
A66: Schulden lang
A68: lening | B68: 0 | E68: 0
C69: =SUM(B68) -> 0 | F69: =SUM(E68) -> 0
A71: Crediteuren
A73: crediteuren | B73: 13875 | E73: 9157
C74: =SUM(B73:B73) -> 13875 | F74: =SUM(E73:E73) -> 9157
A76: Schulden kort
A77: nog te betalen btw | E77: -
A78: nog te ontvangen kosten | B78: 2348 | E78: 7180
A79: vooruitontvangen subsidies | B79: 11607 | E79: 17400
C80: =SUM(B78:B79) -> 13955 | F80: =SUM(E77:E79) -> 24580
A83: TOTAAL | C83: =SUM(C63,C69,C74,C80) -> 69320 | F83: =SUM(F63,F69,F74,F80) -> 63455
C84: ========== | F84: =========

Sheet V&W 2022
A1: Jaarcijfers stg. Multiplex per 31-12-2022
B3: 2022 | F3: 2021
B5: Inkomsten | D5: Uitgaven | F5: Inkomsten | H5: Uitgaven
A6: Inkomsten
A8: Subsidies | B8: 52000 | F8: 30000
A10: Fondsen/sponsering | B10: 59625 | F10: 5505
A12: Bar-opbrengsten | B12: 25003 | F12: -
A14: Opbrengst Markt | B14: =SUM(6403+913) -> 7316 | F14: -
A16: Overige opbrengsten | B16: =SUM(2258+617)+2 -> 2877
A18: Houtvriendjes | B18: 3671 | F18: 3581
A21: Uitgaven
A23: Kosten ondersteuning | D23: 0 | H23: 0
A25: Huisvestingskosten | D25: 1430 | H25: 1250
A27: Festivalkosten | D27: 35442 | H27: 5319
A29: Kosten bar en inkoop | D29: 17690
A31: Marktkosten | D31: 5674
A33: Infrastructuur en techniek | D33: 35451 | H33: 368
A35: Vergunningen/Verzekeringen etc. | C35: 225 | D35: 4644 | H35: 242
A37: Organisatiekosten | D37: =9444+242 -> 9686 | H37: 21294
A39: Vrijwilligers & catering | D39: 14905 | H39: 1639
A41: Publiciteit | D41: 3464 | H41: 1200
A43: Div. algemene kosten | D43: =10332+2 -> 10334 | H43: 3610
A45: BTW
A48: TOTAAL: | B48: =SUM(B8:B46) -> 150492 | D48: =SUM(D23:D47) -> 138720 | F48: =SUM(F8:F46) -> 39086 | H48: =SUM(H8:H46) -> 34922
A53: Resultaat per 31-12 | D53: =B48-D48 -> 11772 | H53: =F48-H48 -> 4164

Sheet Toelichting V&W 2022
A1: TOELICHTING OP DE RESULTATENREKENING
A3: BATEN
A5: Subsidies
A6: De specificatie is als volgt : | H6: 2022-12-31 | J6: 2021-12-31
H7: € | J7: €
A9: Gemeente Haarlem structureel | H9: 30000 | J9: 30000
A10: Gemeente Haarlem éénmalige bijdrage 'post Coronasteun' | H10: 22000 | J10: 0
A12: Totaal | H12: =SUM(H9:H10) -> 52000 | J12: =SUM(J9:J10) -> 30000
A14: Fondsen/sponsering
A15: De specificatie is als volgt : | H15: =H6 -> 2022-12-31 | J15: =J6 -> 2021-12-31
H16: € | J16: €
A17: Fondsen
A18: Fonds voor de podia Programmering | H18: 13125
A19: Prins Bernhard Cultuurfonds 2022 | H19: 6000 | J19: 0
A20: Rotary 2022 | H20: 3000 | J20: 0
A21: Het Haarlemsche Muziekfonds (oorspr. 2020) | H21: 1000 | J21: 0
A22: VSB fonds | H22: 15000 | J22: 0
A23: J.C. Ruigrok Stichting | H23: 3000 | J23: 0
A24: Sena | H24: 10000 | J24: 5505
A25: Zabawas 2022 | H25: 7500 | J25: 0
A26: Dr Hofstee Stichting | H26: 1000 | J26: 0
A28: subtotaal | H28: =SUM(H18:H27) -> 59625 | J28: =SUM(J19:J27) -> 5505
A30: Sponsoring | H30: 0 | J30: 0
H31: =SUM(H30:H30) -> 0 | J31: =SUM(J30:J30) -> 0
A33: Totaal | H33: =H28+H31 -> 59625 | J33: =J28+J31 -> 5505
A35: Toelichting overige opbrengsten
A36: De specificatie is als volgt : | H36: =H6 -> 2022-12-31 | J36: =J6 -> 2021-12-31
H37: € | J37: €
A38: Overige opbrengsten:
A39: Opbrengst Markt | H39: =6403+913 -> 7316 | J39: 0
A40: Opbrengst Bar | H40: 25003 | J40: 0
A41: Houtvriendjes & giften | H41: 3671 | J41: 3581
A42: Overige inkomsten | H42: =617+2258+2 -> 2877 | J42: 0
A44: Totaal | H44: =SUM(H39:H43) -> 38867 | J44: =SUM(J39:J43) -> 3581
A46: LASTEN
H50: 2021-12-31 | J50: 2020-12-31
A51: Huisvestingskosten | H51: € | J51: €
A52: De specificatie is als volgt :
A54: Huurkosten | H54: 1430 | J54: 1250
A55: - materiële vaste activa
A57: Afschrijvingskosten:
A58: - immateriële vaste activa
A59: - materiële vaste activa
A61: Sub-totaal afschrijvingen | H61: =SUM(H54:H60) -> 1430 | J61: =SUM(J54:J60) -> 1250
A63: Dotatie/vrijval egalisatierekening afschrijvingen instandhouding
A65: Totaal Huisvesting | H65: =SUM(H61:H63) -> 1430 | J65: =SUM(J61:J63) -> 1250
A67: Festivalkosten
A68: De specificatie is als volgt : | H68: =H43 -> 00:00:00 | J68: =J43 -> 00:00:00
H69: € | J69: €
A70: Programmering festival
B71: Houtpodium | H71: 8084 | J71: 3019
B72: Houtnacht | H72: 6451 | J72: 1968
B73: Podium Genzeloos | H73: 3837 | J73: 0
B74: Familietent | H74: 5056 | J74: 0
B75: Veldacts | H75: 3284 | J75: 0
B76: Tiny Festival | H76: 5491 | J76: 0
B77: Overige kosten artiesten | H77: 1685 | J77: 105
B78: Presentatiekosten | H78: 600 | J78: 150
B79: Buma rechten/Belasingen/etc | H79: 954 | J79: 227
H80: =SUM(H71:H79) -> 35442 | J80: =SUM(J71:J79) -> 5469
A82: Wereldmarkten
B83: Marktkramen | H83: 5674 | J83: 0
A85: Bar
B86: Inkoop en kosten bar | H86: 17690 | J86: 0
A88: Infrastructuur & Techniek
B89: Podia | H89: 4500 | J89: 0
B90: Tenten | H90: 8645 | J90: 0
B91: Licht & Geluid | H91: 11423 | J91: 218
B92: Infra & Huur materialen | H92: 8233 | J92: 0
B93: Diversen | H93: 2650 | J93: 0
H94: =SUM(H89:H93) -> 35451 | J94: =SUM(J89:J93) -> 218
A96: Vergunningen/EHBO/verzekeringen/beveiliging
B97: Verzekeringen | H97: 2955 | J97: 242
B98: Vergunningen/EHBO | H98: =SUM(445+517) -> 962 | J98: 0
B99: Beveiligingskosten | H99: 600 | J99: 0
B100: Overige kosten | H100: 127 | J100: 0
H101: =SUM(H97:H100) -> 4644 | J101: =SUM(J97:J100) -> 242
A103: Organisatie kosten
B104: Reis- en vervoerskosten | H104: 0 | J104: 0
B105: Porto / telefoonkosten | H105: 530 | J105: 420
B106: Kantoorbenodigdheden / overigen | H106: 116 | J106: 0
B107: Vergaderkosten | H107: 210 | J107: 179
B108: Verzekering Bestuur | H108: 242 | J108: 0
B109: Bestuurskosten/administratiekosten | H109: 485 | J109: 352
B110: Overige organisatiekosten | H110: 8103 | J110: 20343
H111: =SUM(H104:H110) -> 9686 | J111: =SUM(J104:J110) -> 21294
A113: Vrijwilligers & Catering | H113: 14905 | J113: 1639
A115: Publiciteit
B116: Publiciteit regulier | H116: 3464 | J116: 1200
B117: Publiciteit aanvullend | H117: 0 | J117: 0
H118: =SUM(H116:H117) -> 3464 | J118: =SUM(J116:J117) -> 1200
A120: Diversen
B121: Nagekomen kosten | J121: 0
B122: (Niet) verrekenbare BTW (artiesten) | H122: 2343 | J122: 519
B123: Af te dragen btw hoog | J123: 0
B124: Verrekenbare btw (afh. v. inkomsten) | H124: 7989 | J124: 3091
H125: =SUM(H121:H124) -> 10332 | J125: =SUM(J121:J124) -> 3610
A127: Totaal bedrijfskosten | H127: =H65+H80+H83+H86+H94+H101+H111+H113+H118+H125+2 -> 138720 | J127: =J65+J80+J83+J86+J94+J101+J111+J113+J118+J125 -> 34922
A129: Toelichting
A132: Beloningsbeleid
A134: De Stichting is een vrijwilligersorganisatie en heeft geen personeel in vaste dienst.
A136: Beloning Bestuurders
A137: De bestuurders ontvangen geen vergoeding voor hun werkzaamheden voor de stichting.
